[Event "Live Chess"]
[Site "Chess.com"]
[Date "2023.05.21"]
[Round "-"]
[White "Delacorta"]
[Black "jumush"]
[Result "0-1"]
[WhiteElo "1382"]
[BlackElo "1727"]
[TimeControl "300"]
[EndTime "7:05:22 PDT"]
[Termination "jumush won by checkmate"]

1. d4 {[%clk 0:04:58.6]} 1... d5 {[%clk 0:04:57]} 2. Nf3 {[%clk 0:04:57.7]} 2...
c5 {[%clk 0:04:52.2]} 3. e3 {[%clk 0:04:54.8]} 3... e6 {[%clk 0:04:50.1]} 4. b3
{[%clk 0:04:53.7]} 4... Nf6 {[%clk 0:04:48.4]} 5. Bd3 {[%clk 0:04:51.9]} 5...
Nc6 {[%clk 0:04:46.5]} 6. Bb2 {[%clk 0:04:50.9]} 6... Be7 {[%clk 0:04:45.1]} 7.
Nbd2 {[%clk 0:04:49]} 7... O-O {[%clk 0:04:43.3]} 8. a3 {[%clk 0:04:48.1]} 8...
b6 {[%clk 0:04:40.8]} 9. O-O {[%clk 0:04:46.7]} 9... Bb7 {[%clk 0:04:37.3]} 10.
Ne5 {[%clk 0:04:45.4]} 10... Nxe5 {[%clk 0:04:33.1]} 11. dxe5 {[%clk 0:04:44.1]}
11... Nd7 {[%clk 0:04:31.5]} 12. f4 {[%clk 0:04:43.2]} 12... Qc7 {[%clk
0:04:29.1]} 13. Rf3 {[%clk 0:04:41]} 13... Qc6 {[%clk 0:04:25.7]} 14. Rh3 {[%clk
0:04:29.7]} 14... g6 {[%clk 0:04:23.2]} 15. Rg3 {[%clk 0:04:20]} 15... f5 {[%clk
0:04:19.7]} 16. Qh5 {[%clk 0:04:16.6]} 16... Kg7 {[%clk 0:04:16.9]} 17. Qe2
{[%clk 0:03:59.6]} 17... Rf7 {[%clk 0:04:11]} 18. Bb5 {[%clk 0:03:58]} 18... Qc7
{[%clk 0:04:07.7]} 19. Nf3 {[%clk 0:03:42.2]} 19... a6 {[%clk 0:04:04.5]} 20.
Bxd7 {[%clk 0:03:39.8]} 20... Qxd7 {[%clk 0:04:02.5]} 21. Rd1 {[%clk 0:03:34.2]}
21... Qc6 {[%clk 0:04:00.1]} 22. Ng5 {[%clk 0:03:32.3]} 22... Bxg5 {[%clk
0:03:57.4]} 23. Rxg5 {[%clk 0:03:27]} 23... h6 {[%clk 0:03:42.5]} 24. Rg3 {[%clk
0:03:25.3]} 24... Kh7 {[%clk 0:03:40.8]} 25. Qd2 {[%clk 0:02:50]} 25... Rg8
{[%clk 0:03:37.6]} 26. Qf2 {[%clk 0:02:31.3]} 26... Rfg7 {[%clk 0:03:32.3]} 27.
Rh3 {[%clk 0:02:14.2]} 27... g5 {[%clk 0:03:29.2]} 28. Rg3 {[%clk 0:01:52.8]}
28... gxf4 {[%clk 0:03:24.5]} 29. Rxg7+ {[%clk 0:01:45.6]} 29... Rxg7 {[%clk
0:03:22.1]} 30. exf4 {[%clk 0:01:34.8]} 30... d4 {[%clk 0:03:18.3]} 31. Rd2
{[%clk 0:01:33.3]} 31... Qe4 {[%clk 0:02:59.6]} 32. g3 {[%clk 0:01:24.2]} 32...
Qh1# {[%clk 0:02:54]} 0-1

[Event "Live Chess"]
[Site "Chess.com"]
[Date "2023.05.21"]
[Round "-"]
[White "Pablo_dmp"]
[Black "GMHarry-youtube"]
[Result "0-1"]
[WhiteElo "1871"]
[BlackElo "2050"]
[TimeControl "300"]
[EndTime "7:05:24 PDT"]
[Termination "GMHarry-youtube won on time"]

1. e4 {[%clk 0:04:58.7]} 1... c5 {[%clk 0:04:58.8]} 2. a3 {[%clk 0:04:56.3]}
2... Nf6 {[%clk 0:04:55.7]} 3. e5 {[%clk 0:04:52.1]} 3... Nd5 {[%clk 0:04:54.5]}
4. Nf3 {[%clk 0:04:49.2]} 4... d6 {[%clk 0:04:51.4]} 5. Bc4 {[%clk 0:04:46.4]}
5... e6 {[%clk 0:04:48.7]} 6. O-O {[%clk 0:04:43.2]} 6... Nb6 {[%clk 0:04:44.7]}
7. Bb5+ {[%clk 0:04:41.3]} 7... Bd7 {[%clk 0:04:43.2]} 8. Bxd7+ {[%clk
0:04:39.7]} 8... Qxd7 {[%clk 0:04:42.8]} 9. exd6 {[%clk 0:04:36]} 9... Bxd6
{[%clk 0:04:42.7]} 10. d4 {[%clk 0:04:34.1]} 10... cxd4 {[%clk 0:04:41]} 11.
Qxd4 {[%clk 0:04:34]} 11... Nc6 {[%clk 0:04:40.2]} 12. Qxg7 {[%clk 0:04:30.2]}
12... O-O-O {[%clk 0:04:39.3]} 13. Nc3 {[%clk 0:04:20.6]} 13... Rdg8 {[%clk
0:04:35.2]} 14. Qh6 {[%clk 0:04:17.1]} 14... Rg6 {[%clk 0:04:34]} 15. Qh3 {[%clk
0:04:13.5]} 15... Rhg8 {[%clk 0:04:28.8]} 16. g3 {[%clk 0:04:12.5]} 16... Ne7
{[%clk 0:04:10]} 17. Qxh7 {[%clk 0:03:57.6]} 17... Nf5 {[%clk 0:04:05]} 18. Ne4
{[%clk 0:03:47.5]} 18... Qc7 {[%clk 0:03:52.5]} 19. Nxd6+ {[%clk 0:03:45.3]}
19... Qxd6 {[%clk 0:03:51.1]} 20. Kh1 {[%clk 0:02:14.2]} 20... Qf8 {[%clk
0:03:42.1]} 21. Ne5 {[%clk 0:02:07.8]} 21... R6g7 {[%clk 0:03:15.5]} 22. Qh3
{[%clk 0:02:02.9]} 22... Rh8 {[%clk 0:03:12.5]} 23. Qg2 {[%clk 0:02:01.3]} 23...
Rgh7 {[%clk 0:02:58.1]} 24. Ng4 {[%clk 0:01:52.9]} 24... Rg8 {[%clk 0:02:34.8]}
25. Nf6 {[%clk 0:01:34.1]} 25... Nh4 {[%clk 0:02:24]} 26. Nxh7 {[%clk
0:01:25.9]} 26... Qg7 {[%clk 0:02:13.4]} 27. Qe4 {[%clk 0:00:59.4]} 27... Nf5
{[%clk 0:02:06.4]} 28. Ng5 {[%clk 0:00:52.1]} 28... Rh8 {[%clk 0:01:58.7]} 29.
Nxe6 {[%clk 0:00:49.4]} 29... Qh7 {[%clk 0:01:51.1]} 30. h4 {[%clk 0:00:42]}
30... Nxg3+ {[%clk 0:01:45.6]} 31. fxg3 {[%clk 0:00:36]} 31... Qxe4+ {[%clk
0:01:44.2]} 32. Kh2 {[%clk 0:00:32.3]} 32... fxe6 {[%clk 0:01:43]} 33. Bf4
{[%clk 0:00:28.2]} 33... Nd5 {[%clk 0:01:40.1]} 34. Rae1 {[%clk 0:00:23.2]}
34... Qxc2+ {[%clk 0:01:37.8]} 35. Kh3 {[%clk 0:00:20.4]} 35... Qc5 {[%clk
0:01:35.3]} 36. Be5 {[%clk 0:00:18.9]} 36... Ne3 {[%clk 0:01:18.9]} 37. Rc1
{[%clk 0:00:17.2]} 37... Nc4 {[%clk 0:01:11.7]} 38. Bxh8 {[%clk 0:00:14.6]}
38... Kd7 {[%clk 0:01:10.4]} 39. b3 {[%clk 0:00:13.9]} 39... Qc8 {[%clk
0:00:59.2]} 40. Rxc4 {[%clk 0:00:12.3]} 40... Qxh8 {[%clk 0:00:57.1]} 41. Rd1+
{[%clk 0:00:10.8]} 41... Ke7 {[%clk 0:00:53.1]} 42. Rc7+ {[%clk 0:00:09.9]}
42... Kf6 {[%clk 0:00:52]} 43. Rdd7 {[%clk 0:00:09.2]} 43... Qh6 {[%clk
0:00:35.7]} 44. Rf7+ {[%clk 0:00:07.7]} 44... Ke5 {[%clk 0:00:33.9]} 45. Rxb7
{[%clk 0:00:06.4]} 45... Qc1 {[%clk 0:00:31.7]} 46. Rxa7 {[%clk 0:00:04.4]}
46... Qh1+ {[%clk 0:00:30.3]} 47. Kg4 {[%clk 0:00:03.7]} 47... Qe4+ {[%clk
0:00:28.5]} 48. Rf4 {[%clk 0:00:02.4]} 48... Qe2+ {[%clk 0:00:27.9]} 49. Kg5
{[%clk 0:00:01.2]} 49... Qe3 {[%clk 0:00:26.2]} 0-1

[Event "Live Chess"]
[Site "Chess.com"]
[Date "2023.05.21"]
[Round "-"]
[White "domrobson"]
[Black "elephantgerrald"]
[Result "1-0"]
[WhiteElo "1760"]
[BlackElo "667"]
[TimeControl "300"]
[EndTime "7:05:29 PDT"]
[Termination "domrobson won by checkmate"]

1. d4 {[%clk 0:04:58.9]} 1... d5 {[%clk 0:04:59]} 2. c4 {[%clk 0:04:58.1]} 2...
dxc4 {[%clk 0:04:51.7]} 3. Nf3 {[%clk 0:04:56.9]} 3... Bg4 {[%clk 0:04:49.3]} 4.
Ne5 {[%clk 0:04:55.6]} 4... Bf5 {[%clk 0:04:45.4]} 5. Nxc4 {[%clk 0:04:53]} 5...
Bxb1 {[%clk 0:04:44]} 6. Rxb1 {[%clk 0:04:51.3]} 6... Nf6 {[%clk 0:04:22.1]} 7.
e3 {[%clk 0:04:48]} 7... c6 {[%clk 0:04:14.8]} 8. Qb3 {[%clk 0:04:45.1]} 8... b5
{[%clk 0:04:06.8]} 9. Ne5 {[%clk 0:04:43.3]} 9... Qa5+ {[%clk 0:04:04]} 10. Bd2
{[%clk 0:04:41.7]} 10... Qa4 {[%clk 0:04:01.5]} 11. Qxf7+ {[%clk 0:04:38.3]}
11... Kd8 {[%clk 0:03:59.5]} 12. Qe6 {[%clk 0:04:29]} 12... Qc2 {[%clk
0:03:54.2]} 13. Bd3 {[%clk 0:04:24.1]} 13... Qa4 {[%clk 0:03:49.6]} 14. O-O
{[%clk 0:04:14.5]} 14... Nbd7 {[%clk 0:03:47.6]} 15. Nxc6+ {[%clk 0:04:09.8]}
15... Kc8 {[%clk 0:03:40.3]} 16. Rfc1 {[%clk 0:04:03.6]} 16... Kb7 {[%clk
0:03:36.8]} 17. Be4 {[%clk 0:03:58.2]} 17... Kb6 {[%clk 0:03:35]} 18. Ba5+
{[%clk 0:03:51.1]} 18... Ka6 {[%clk 0:03:27.4]} 19. b4 {[%clk 0:03:44.4]} 19...
Rc8 {[%clk 0:03:21.6]} 20. Nb8# {[%clk 0:03:43.4]} 1-0

[Event "Live Chess"]
[Site "Chess.com"]
[Date "2023.05.21"]
[Round "-"]
[White "Goblinbasher"]
[Black "AMCWAML"]
[Result "0-1"]
[WhiteElo "1213"]
[BlackElo "2269"]
[TimeControl "300"]
[EndTime "7:05:45 PDT"]
[Termination "AMCWAML won by resignation"]

1. e4 {[%clk 0:04:52.7]} 1... c6 {[%clk 0:04:59.9]} 2. d4 {[%clk 0:04:51.1]}
2... d5 {[%clk 0:04:59.8]} 3. exd5 {[%clk 0:04:50]} 3... cxd5 {[%clk 0:04:58.5]}
4. Nc3 {[%clk 0:04:49.2]} 4... Nf6 {[%clk 0:04:57.5]} 5. h3 {[%clk 0:04:47.7]}
5... Nc6 {[%clk 0:04:56.4]} 6. Nf3 {[%clk 0:04:45.7]} 6... Bf5 {[%clk
0:04:51.9]} 7. Bb5 {[%clk 0:04:43.7]} 7... e6 {[%clk 0:04:49.8]} 8. O-O {[%clk
0:04:39.8]} 8... Qc7 {[%clk 0:04:44.9]} 9. Ne5 {[%clk 0:04:23.3]} 9... Bd6
{[%clk 0:04:41.6]} 10. f4 {[%clk 0:04:14.6]} 10... O-O {[%clk 0:04:37.6]} 11.
Bxc6 {[%clk 0:04:09.9]} 11... bxc6 {[%clk 0:04:35.8]} 12. Qe1 {[%clk 0:04:06.4]}
12... Bxc2 {[%clk 0:04:19.6]} 13. Qg3 {[%clk 0:03:52.9]} 13... Ne4 {[%clk
0:04:13.3]} 14. Nxe4 {[%clk 0:03:47.2]} 14... Bxe4 {[%clk 0:04:13.2]} 15. Ng4
{[%clk 0:03:32.2]} 15... Kh8 {[%clk 0:04:05.7]} 16. Nf2 {[%clk 0:03:19.8]} 16...
Bf5 {[%clk 0:03:57.9]} 17. Ng4 {[%clk 0:03:13.3]} 17... c5 {[%clk 0:03:52.4]}
18. Ne3 {[%clk 0:03:11]} 18... Bd3 {[%clk 0:03:47.8]} 19. Rd1 {[%clk 0:03:06]}
19... cxd4 {[%clk 0:03:39.1]} 20. Rxd3 {[%clk 0:03:03.7]} 20... dxe3 {[%clk
0:03:36.3]} 21. Rc3 {[%clk 0:02:55.3]} 21... Qb6 {[%clk 0:03:30.1]} 22. Rb3
{[%clk 0:02:53.4]} 22... Qa6 {[%clk 0:03:07.4]} 23. Bxe3 {[%clk 0:02:51.5]}
23... Rac8 {[%clk 0:03:02.3]} 24. Bd4 {[%clk 0:02:38.5]} 24... f6 {[%clk
0:02:56.9]} 25. Re3 {[%clk 0:02:28.1]} 25... Rc4 {[%clk 0:02:49.2]} 26. Bc3
{[%clk 0:02:23.8]} 26... Bxf4 {[%clk 0:02:45.1]} 27. Qf3 {[%clk 0:02:10.4]}
27... Bxe3+ {[%clk 0:02:40.6]} 28. Qxe3 {[%clk 0:02:09.5]} 28... Qb6 {[%clk
0:02:34.3]} 29. Qxb6 {[%clk 0:02:07]} 29... axb6 {[%clk 0:02:33.9]} 30. Rc1
{[%clk 0:02:03.2]} 30... d4 {[%clk 0:02:28.6]} 31. Bd2 {[%clk 0:02:01.5]} 31...
Rxc1+ {[%clk 0:02:28.5]} 32. Bxc1 {[%clk 0:02:00.2]} 32... Rc8 {[%clk
0:02:27.8]} 33. g4 {[%clk 0:01:56.7]} 33... Rxc1+ {[%clk 0:02:24.9]} 0-1

[Event "Live Chess"]
[Site "Chess.com"]
[Date "2023.05.21"]
[Round "-"]
[White "Biranidun"]
[Black "Pandreq"]
[Result "1-0"]
[WhiteElo "2525"]
[BlackElo "1216"]
[TimeControl "300"]
[EndTime "7:05:53 PDT"]
[Termination "Biranidun won by resignation"]

1. e4 {[%clk 0:04:58.1]} 1... Nf6 {[%clk 0:04:58.7]} 2. e5 {[%clk 0:04:56.9]}
2... Nd5 {[%clk 0:04:58]} 3. d4 {[%clk 0:04:55.8]} 3... d6 {[%clk 0:04:56.8]} 4.
Nf3 {[%clk 0:04:55]} 4... Nc6 {[%clk 0:04:55.2]} 5. c4 {[%clk 0:04:52.3]} 5...
Nb6 {[%clk 0:04:52.6]} 6. e6 {[%clk 0:04:51.3]} 6... Bxe6 {[%clk 0:04:29.3]} 7.
d5 {[%clk 0:04:49.7]} 7... Bxd5 {[%clk 0:04:28.5]} 8. cxd5 {[%clk 0:04:48.9]}
8... Nb4 {[%clk 0:04:20.6]} 9. Nc3 {[%clk 0:04:45.7]} 9... g6 {[%clk 0:04:16.1]}
10. a3 {[%clk 0:04:44.7]} 10... Na6 {[%clk 0:04:13.6]} 11. Bb5+ {[%clk
0:04:44.3]} 11... Nd7 {[%clk 0:04:07.1]} 12. Bxa6 {[%clk 0:04:43.5]} 12... bxa6
{[%clk 0:04:05.9]} 13. Qd4 {[%clk 0:04:41.5]} 13... Nf6 {[%clk 0:04:02.3]} 14.
O-O {[%clk 0:04:37.9]} 14... Bg7 {[%clk 0:04:01]} 15. Qa4+ {[%clk 0:04:36.4]}
15... Nd7 {[%clk 0:03:56.8]} 16. Re1 {[%clk 0:04:32.4]} 16... O-O {[%clk
0:03:50.7]} 17. Bg5 {[%clk 0:04:31.3]} 17... Nb6 {[%clk 0:03:48.3]} 18. Qh4
{[%clk 0:04:28.6]} 18... f6 {[%clk 0:03:44.8]} 19. Be3 {[%clk 0:04:24.5]} 19...
Nc4 {[%clk 0:03:38.5]} 20. Qxc4 {[%clk 0:04:23]} 1-0

[Event "Live Chess"]
[Site "Chess.com"]
[Date "2023.05.21"]
[Round "-"]
[White "WilliWeisswurst"]
[Black "siddu198"]
[Result "1-0"]
[WhiteElo "1768"]
[BlackElo "1616"]
[TimeControl "300"]
[EndTime "7:06:05 PDT"]
[Termination "WilliWeisswurst won by checkmate"]

1. e4 {[%clk 0:04:59.2]} 1... e5 {[%clk 0:04:58.7]} 2. Nf3 {[%clk 0:04:58.2]}
2... Nc6 {[%clk 0:04:57.6]} 3. Bc4 {[%clk 0:04:57.6]} 3... Nf6 {[%clk
0:04:55.8]} 4. d3 {[%clk 0:04:55.4]} 4... Bc5 {[%clk 0:04:54.3]} 5. O-O {[%clk
0:04:53.9]} 5... d6 {[%clk 0:04:53.6]} 6. h3 {[%clk 0:04:53.1]} 6... h6 {[%clk
0:04:51.6]} 7. c3 {[%clk 0:04:51.5]} 7... Be6 {[%clk 0:04:51]} 8. Bb3 {[%clk
0:04:50.3]} 8... Qe7 {[%clk 0:04:48.8]} 9. Re1 {[%clk 0:04:42.3]} 9... O-O-O
{[%clk 0:04:44.9]} 10. d4 {[%clk 0:04:40.4]} 10... exd4 {[%clk 0:04:44.8]} 11.
cxd4 {[%clk 0:04:39.4]} 11... Bxb3 {[%clk 0:04:43]} 12. axb3 {[%clk 0:04:37.8]}
12... Bb4 {[%clk 0:04:38.5]} 13. Nc3 {[%clk 0:04:20.4]} 13... Rhe8 {[%clk
0:04:19.1]} 14. d5 {[%clk 0:04:11.5]} 14... Ne5 {[%clk 0:04:07.8]} 15. Nxe5
{[%clk 0:03:59.3]} 15... Qxe5 {[%clk 0:04:05.8]} 16. Rxa7 {[%clk 0:03:58.5]}
16... Bxc3 {[%clk 0:04:00.4]} 17. bxc3 {[%clk 0:03:56.7]} 17... Qxc3 {[%clk
0:03:59.3]} 18. Bd2 {[%clk 0:03:34.5]} 18... Qe5 {[%clk 0:03:47.7]} 19. f3
{[%clk 0:02:34.7]} 19... Kd7 {[%clk 0:03:25.5]} 20. Rxb7 {[%clk 0:02:32.1]}
20... Rb8 {[%clk 0:03:23.2]} 21. Rxb8 {[%clk 0:02:27.1]} 21... Rxb8 {[%clk
0:03:22.2]} 22. Qc2 {[%clk 0:02:24.4]} 22... Rb6 {[%clk 0:03:15.8]} 23. Ba5
{[%clk 0:02:14.4]} 23... Ra6 {[%clk 0:03:13.8]} 24. Qxc7+ {[%clk 0:02:11.8]}
24... Ke8 {[%clk 0:03:03]} 25. Qd8# {[%clk 0:02:10.4]} 1-0

[Event "Live Chess"]
[Site "Chess.com"]
[Date "2023.05.21"]
[Round "-"]
[White "GMMickeyAdams"]
[Black "FlyingChessKestrel13"]
[Result "1-0"]
[WhiteElo "2786"]
[BlackElo "2063"]
[TimeControl "300"]
[EndTime "7:06:10 PDT"]
[Termination "GMMickeyAdams won by resignation"]

1. e4 {[%clk 0:04:57.6]} 1... c6 {[%clk 0:04:57.8]} 2. d4 {[%clk 0:04:53]} 2...
d5 {[%clk 0:04:56.4]} 3. Nd2 {[%clk 0:04:52.6]} 3... dxe4 {[%clk 0:04:53.5]} 4.
Nxe4 {[%clk 0:04:51.5]} 4... Nf6 {[%clk 0:04:52.6]} 5. Nxf6+ {[%clk 0:04:49]}
5... exf6 {[%clk 0:04:51.7]} 6. Be3 {[%clk 0:04:47.3]} 6... Be6 {[%clk
0:04:50.1]} 7. Ne2 {[%clk 0:04:43.5]} 7... Bd6 {[%clk 0:04:43.7]} 8. Nf4 {[%clk
0:04:41.6]} 8... Bf5 {[%clk 0:04:33.2]} 9. Be2 {[%clk 0:04:25.1]} 9... O-O
{[%clk 0:04:30.1]} 10. O-O {[%clk 0:04:23.5]} 10... Qc7 {[%clk 0:04:26.6]} 11.
Qd2 {[%clk 0:04:20]} 11... Nd7 {[%clk 0:04:17]} 12. h3 {[%clk 0:04:14.5]} 12...
h6 {[%clk 0:04:07.8]} 13. Rfe1 {[%clk 0:04:12.2]} 13... Rfe8 {[%clk 0:04:06]}
14. Bd3 {[%clk 0:04:00.5]} 14... Bxd3 {[%clk 0:03:58.7]} 15. Nxd3 {[%clk
0:03:58.9]} 15... Nf8 {[%clk 0:03:56.3]} 16. Bf4 {[%clk 0:03:52.3]} 16... Bxf4
{[%clk 0:03:53.9]} 17. Nxf4 {[%clk 0:03:50.6]} 17... Rad8 {[%clk 0:03:47.4]} 18.
c3 {[%clk 0:03:45.9]} 18... Ng6 {[%clk 0:03:26.6]} 19. Nd3 {[%clk 0:03:32.4]}
19... b6 {[%clk 0:03:19]} 20. Re3 {[%clk 0:03:25.5]} 20... Rxe3 {[%clk 0:03:01]}
21. Qxe3 {[%clk 0:03:22.4]} 21... Qd7 {[%clk 0:02:59.7]} 22. Nb4 {[%clk
0:02:59.6]} 22... a5 {[%clk 0:02:39.3]} 23. Nc2 {[%clk 0:02:56.9]} 23... Re8
{[%clk 0:02:36.4]} 24. Qf3 {[%clk 0:02:54.3]} 24... Nh4 {[%clk 0:02:16.4]} 25.
Qg4 {[%clk 0:02:40.5]} 25... Qxg4 {[%clk 0:02:12.7]} 26. hxg4 {[%clk 0:02:39.2]}
26... Re2 {[%clk 0:02:11.5]} 27. Rc1 {[%clk 0:02:37.8]} 27... Ng6 {[%clk
0:01:59]} 28. Kf1 {[%clk 0:02:36.1]} 28... Re6 {[%clk 0:01:54.8]} 29. Ne3 {[%clk
0:02:31.7]} 29... Nf4 {[%clk 0:01:50]} 30. c4 {[%clk 0:02:24.2]} 30... Rd6
{[%clk 0:01:45.6]} 31. Rd1 {[%clk 0:02:22.6]} 31... Ne6 {[%clk 0:01:44.4]} 32.
d5 {[%clk 0:02:21.5]} 32... cxd5 {[%clk 0:01:43]} 33. Rxd5 {[%clk 0:02:15.8]}
33... Rc6 {[%clk 0:01:38.5]} 34. b3 {[%clk 0:02:14.4]} 34... g6 {[%clk
0:01:32.4]} 35. g3 {[%clk 0:02:12.8]} 35... Kf8 {[%clk 0:01:30.8]} 36. Ke2
{[%clk 0:02:05.7]} 36... Ke7 {[%clk 0:01:28.7]} 37. Kd2 {[%clk 0:02:02.3]} 37...
Nc5 {[%clk 0:01:20.9]} 38. Rd4 {[%clk 0:01:59]} 38... Ke8 {[%clk 0:01:03]} 39.
Nd5 {[%clk 0:01:55.3]} 39... f5 {[%clk 0:00:55.7]} 40. gxf5 {[%clk 0:01:53.4]}
40... gxf5 {[%clk 0:00:54.7]} 41. Rf4 {[%clk 0:01:51.6]} 41... Ne4+ {[%clk
0:00:53.4]} 42. Kd3 {[%clk 0:01:49.1]} 42... Nd6 {[%clk 0:00:50.5]} 43. Kd4
{[%clk 0:01:47.3]} 43... Kd7 {[%clk 0:00:47]} 44. Rh4 {[%clk 0:01:45.6]} 44...
Ne4 {[%clk 0:00:43.7]} 45. Rf4 {[%clk 0:01:41.9]} 45... Nd6 {[%clk 0:00:42.5]}
46. f3 {[%clk 0:01:39.5]} 46... Ke6 {[%clk 0:00:27.1]} 47. Rh4 {[%clk
0:01:37.9]} 47... f6 {[%clk 0:00:26.2]} 48. Rxh6 {[%clk 0:01:36.2]} 48... Ne8
{[%clk 0:00:25.8]} 49. Rh7 {[%clk 0:01:33.9]} 49... Kd6 {[%clk 0:00:19.5]} 50.
f4 {[%clk 0:01:29.6]} 50... b5 {[%clk 0:00:17.1]} 51. Rh8 {[%clk 0:01:22.7]}
51... Nc7 {[%clk 0:00:14.6]} 52. Rd8+ {[%clk 0:01:20.5]} 52... Ke6 {[%clk
0:00:13.4]} 53. Rc8 {[%clk 0:01:11.5]} 1-0

[Event "Live Chess"]
[Site "Chess.com"]
[Date "2023.05.21"]
[Round "-"]
[White "PantherCal"]
[Black "Alfiedog12"]
[Result "1-0"]
[WhiteElo "1828"]
[BlackElo "891"]
[TimeControl "300"]
[EndTime "7:06:18 PDT"]
[Termination "PantherCal won by resignation"]

1. e4 {[%clk 0:04:57.1]} 1... c6 {[%clk 0:04:59.1]} 2. d4 {[%clk 0:04:56.1]}
2... d5 {[%clk 0:04:58.7]} 3. e5 {[%clk 0:04:55.8]} 3... Bf5 {[%clk 0:04:57.4]}
4. Nc3 {[%clk 0:04:54.4]} 4... e6 {[%clk 0:04:56.2]} 5. g4 {[%clk 0:04:54]} 5...
Bg6 {[%clk 0:04:46.7]} 6. Nge2 {[%clk 0:04:52.1]} 6... Bb4 {[%clk 0:04:42.9]} 7.
Be3 {[%clk 0:04:46]} 7... Be4 {[%clk 0:04:41.3]} 8. Rg1 {[%clk 0:04:40.7]} 8...
Qh4 {[%clk 0:04:33.4]} 9. h3 {[%clk 0:04:37.8]} 9... f6 {[%clk 0:04:14.3]} 10.
Bf4 {[%clk 0:04:31.6]} 10... fxe5 {[%clk 0:04:07.5]} 11. Bxe5 {[%clk 0:04:31.5]}
11... Nf6 {[%clk 0:04:03.2]} 12. Bg3 {[%clk 0:04:27.1]} 12... Qg5 {[%clk
0:03:53.4]} 13. f4 {[%clk 0:04:25.3]} 13... Qg6 {[%clk 0:03:41.6]} 14. Qd2
{[%clk 0:04:20]} 14... Bf3 {[%clk 0:03:32.2]} 15. O-O-O {[%clk 0:04:16.7]} 15...
Ne4 {[%clk 0:03:28]} 16. Qe3 {[%clk 0:04:11.6]} 16... Bxc3 {[%clk 0:03:13.8]}
17. Qxf3 {[%clk 0:03:58.5]} 17... Nxg3 {[%clk 0:02:47.7]} 18. Nxg3 {[%clk
0:03:58.4]} 18... Ba5 {[%clk 0:02:40.2]} 19. Bd3 {[%clk 0:03:56.8]} 19... Qf7
{[%clk 0:02:31.5]} 20. f5 {[%clk 0:03:55.2]} 20... O-O {[%clk 0:02:18.3]} 21.
Rgf1 {[%clk 0:03:47]} 21... Qf6 {[%clk 0:02:05.2]} 22. Qe3 {[%clk 0:03:27.6]}
22... Nd7 {[%clk 0:02:01.1]} 23. fxe6 {[%clk 0:03:23.6]} 23... Rae8 {[%clk
0:01:57.5]} 24. Rxf6 {[%clk 0:03:20.8]} 24... Nxf6 {[%clk 0:01:54.6]} 25. Nf5
{[%clk 0:03:04.9]} 25... Ne4 {[%clk 0:01:48.6]} 26. Bxe4 {[%clk 0:03:03.5]}
26... dxe4 {[%clk 0:01:46.9]} 27. Qxe4 {[%clk 0:03:02.4]} 27... Bd8 {[%clk
0:01:42.3]} 28. e7 {[%clk 0:02:57.8]} 28... Bxe7 {[%clk 0:01:34.3]} 29. Nxe7+
{[%clk 0:02:57.7]} 29... Kh8 {[%clk 0:01:26.4]} 30. Re1 {[%clk 0:02:54.4]} 30...
Rf7 {[%clk 0:01:22.7]} 31. Ng6+ {[%clk 0:02:52.8]} 31... hxg6 {[%clk 0:01:11.9]}
32. Qxe8+ {[%clk 0:02:51.8]} 32... Kh7 {[%clk 0:01:11.3]} 33. Qxf7 {[%clk
0:02:50.9]} 1-0

[Event "Live Chess"]
[Site "Chess.com"]
[Date "2023.05.21"]
[Round "-"]
[White "YrrriKharkiv"]
[Black "jimwad"]
[Result "1-0"]
[WhiteElo "2068"]
[BlackElo "1220"]
[TimeControl "300"]
[EndTime "7:06:24 PDT"]
[Termination "YrrriKharkiv won by resignation"]

1. d4 {[%clk 0:04:54.5]} 1... d5 {[%clk 0:04:58.5]} 2. c4 {[%clk 0:04:53.8]}
2... c6 {[%clk 0:04:57.4]} 3. Nc3 {[%clk 0:04:52.3]} 3... Nf6 {[%clk 0:04:55.9]}
4. Bg5 {[%clk 0:04:48.7]} 4... Bf5 {[%clk 0:04:52.8]} 5. Bxf6 {[%clk 0:04:45.2]}
5... exf6 {[%clk 0:04:51.2]} 6. cxd5 {[%clk 0:04:44.8]} 6... cxd5 {[%clk
0:04:47.8]} 7. Qb3 {[%clk 0:04:44.3]} 7... Nc6 {[%clk 0:04:30.5]} 8. e3 {[%clk
0:04:38.3]} 8... Nb4 {[%clk 0:04:21.6]} 9. Bb5+ {[%clk 0:04:23.3]} 9... Nc6
{[%clk 0:04:10.1]} 10. Qxd5 {[%clk 0:04:13.6]} 10... Qxd5 {[%clk 0:04:01.7]} 11.
Nxd5 {[%clk 0:04:12.1]} 11... Bd6 {[%clk 0:03:52.4]} 12. Nf3 {[%clk 0:04:05.3]}
12... O-O {[%clk 0:03:50.1]} 13. Bxc6 {[%clk 0:04:01.6]} 13... bxc6 {[%clk
0:03:48.5]} 14. Nc3 {[%clk 0:03:59.1]} 14... c5 {[%clk 0:03:40.9]} 15. O-O
{[%clk 0:03:55.4]} 15... cxd4 {[%clk 0:03:39.6]} 16. Nxd4 {[%clk 0:03:54.1]}
16... Rab8 {[%clk 0:03:28.8]} 17. Nxf5 {[%clk 0:03:51.2]} 1-0

[Event "Live Chess"]
[Site "Chess.com"]
[Date "2023.05.21"]
[Round "-"]
[White "McSlash1"]
[Black "davigator"]
[Result "0-1"]
[WhiteElo "2005"]
[BlackElo "2305"]
[TimeControl "300"]
[EndTime "7:06:29 PDT"]
[Termination "davigator won by resignation"]

1. e4 {[%clk 0:04:58.9]} 1... c5 {[%clk 0:04:58.4]} 2. Nc3 {[%clk 0:04:57.9]}
2... Nc6 {[%clk 0:04:57.7]} 3. f4 {[%clk 0:04:57.5]} 3... g6 {[%clk 0:04:57.1]}
4. Nf3 {[%clk 0:04:56.9]} 4... Bg7 {[%clk 0:04:56.6]} 5. Bc4 {[%clk 0:04:56.5]}
5... Nh6 {[%clk 0:04:55.9]} 6. d3 {[%clk 0:04:55.2]} 6... O-O {[%clk 0:04:55.4]}
7. O-O {[%clk 0:04:54.7]} 7... d6 {[%clk 0:04:54.9]} 8. f5 {[%clk 0:04:53.4]}
8... gxf5 {[%clk 0:04:53]} 9. Qe1 {[%clk 0:04:51]} 9... Ng4 {[%clk 0:04:46.8]}
10. h3 {[%clk 0:04:44.4]} 10... Nge5 {[%clk 0:04:42.4]} 11. Bb3 {[%clk
0:04:37.7]} 11... Nxf3+ {[%clk 0:04:41.1]} 12. Rxf3 {[%clk 0:04:36.2]} 12... Ne5
{[%clk 0:04:40.2]} 13. Rf1 {[%clk 0:04:30.9]} 13... Kh8 {[%clk 0:04:35.5]} 14.
exf5 {[%clk 0:04:27.5]} 14... Bf6 {[%clk 0:04:34.5]} 15. Bh6 {[%clk 0:04:25.3]}
15... Rg8 {[%clk 0:04:33.6]} 16. Nd5 {[%clk 0:04:24.1]} 16... Bd7 {[%clk
0:04:24.9]} 17. Nxf6 {[%clk 0:04:15.9]} 17... exf6 {[%clk 0:04:23.8]} 18. Qh4
{[%clk 0:04:11.5]} 18... Bc6 {[%clk 0:04:22.7]} 19. Rae1 {[%clk 0:03:49.5]}
19... Rxg2+ {[%clk 0:04:19.8]} 20. Kh1 {[%clk 0:03:44.3]} 20... Rg4+ {[%clk
0:04:17.8]} 0-1